[Event "Djerba Festival Blitz 2025"]
[Site "Djerba"]
[Date "2025.02.21"]
[Round "4.33"]
[White "Mallah, Mohamed Khalil"]
[Black "El Kadi, Ismael"]
[Result "0-1"]
[ECO "A05"]
[WhiteElo "1499"]
[BlackElo "1852"]
[PlyCount "65"]
[EventDate "2025.02.15"]
[EventType "swiss"]
[EventCountry "TUN"]
[TimeControl "180+3"]

1. e4 {[%emt 0:00:02]} c5 {[%emt 0:00:03]} 2. Nf3 {[%emt 0:00:03]} d6 {[%emt 0:00:02]} 3. g3 {[%emt 0:00:02]} g6 {[%emt 0:00:05]} 4. Bg2 {[%emt 0:00:02]} Bg7 {[%emt 0:00:02]} 5. d3 {[%emt 0:00:04]} Nf6 {[%emt 0:00:03]} 6. O-O {[%emt 0:00:03]} O-O {[%emt 0:00:03]} 7. Nbd2 {[%emt 0:00:03]} Nc6 {[%emt 0:00:02]} 8. c3 {[%emt 0:00:03]} e5 {[%emt 0:00:10]} 9. Re1 {[%emt 0:00:06]} Ng4 {[%emt 0:00:05]} 10. h3 {[%emt 0:00:10]} Nh6 {[%emt 0:00:02]} 11. Nf1 {[%emt 0:00:07]} f5 {[%emt 0:00:05]} 12. a4 {[%emt 0:00:14]} fxe4 {[%emt 0:00:18]} 13. dxe4 {[%emt 0:00:02]} Be6 {[%emt 0:00:23]} 14. Bg5 {[%emt 0:00:07]} Qd7 {[%emt 0:00:02]} 15. Kh2 {[%emt 0:00:03]} Nf7 {[%emt 0:00:03]} 16. Bd2 {[%emt 0:00:23]} Rad8 {[%emt 0:00:05]} 17. Ne3 {[%emt 0:00:09]} Bh6 {[%emt 0:00:17]} 18. Nd5 {[%emt 0:00:15]} Bxd5 {[%emt 0:00:10]} 19. exd5 {[%emt 0:00:02]} Ne7 {[%emt 0:00:07]} 20. c4 {[%emt 0:00:04]} Bxd2 {[%emt 0:00:15]} 21. Qxd2 {[%emt 0:00:02]} Nf5 {[%emt 0:00:06]} 22. g4 {[%emt 0:00:16]} Nd4 {[%emt 0:00:07]} 23. Nxd4 {[%emt 0:00:10]} exd4 {[%emt 0:00:03]} 24. a5 {[%emt 0:00:32]} Ne5 {[%emt 0:00:05]} 25. b4 {[%emt 0:00:08]} b6 {[%emt 0:00:07]} 26. axb6 {[%emt 0:00:10]} axb6 {[%emt 0:00:02]} 27. bxc5 {[%emt 0:00:16]} bxc5 {[%emt 0:00:03]} 28. Rec1 {[%emt 0:00:27]} Qf7 {[%emt 0:00:06]} 29. Kg1 {[%emt 0:00:04]} Rde8 {[%emt 0:00:12]} 30. Ra6 {[%emt 0:00:06]} Qf6 {[%emt 0:00:14]} 31. Rb1 {[%emt 0:00:18]} Rb8 {[%emt 0:00:12]} 32. Rxb8 {[%emt 0:00:06]} Rxb8 {[%emt 0:00:03]} 33. Ra8 {[%emt 0:00:03]} 0-1

[Event "Djerba Festival Blitz 2025"]
[Site "Djerba"]
[Date "2025.02.21"]
[Round "4.34"]
[White "Ben Mbarek, Mohamed"]
[Black "Minde, Timothe"]
[Result "1-0"]
[ECO "A05"]
[WhiteElo "1570"]
[BlackElo "1879"]
[PlyCount "53"]
[EventDate "2025.02.15"]
[EventType "swiss"]
[EventCountry "TUN"]
[TimeControl "180+3"]

1. Nf3 {[%emt 0:00:03]} c5 {[%emt 0:00:05]} 2. g3 {[%emt 0:00:03]} g6 {[%emt 0:00:03]} 3. Bg2 {[%emt 0:00:02]} Bg7 {[%emt 0:00:02]} 4. O-O {[%emt 0:00:03]} Nf6 {[%emt 0:00:02]} 5. d3 {[%emt 0:00:03]} O-O {[%emt 0:00:04]} 6. e4 {[%emt 0:00:02]} d6 {[%emt 0:00:17]} 7. Nbd2 {[%emt 0:00:05]} Nc6 {[%emt 0:00:07]} 8. a4 {[%emt 0:00:08]} a6 {[%emt 0:00:06]} 9. Nc4 {[%emt 0:00:05]} Be6 {[%emt 0:00:15]} 10. Ng5 {[%emt 0:00:20]} Bxc4 {[%emt 0:00:04]} 11. dxc4 {[%emt 0:00:02]} h6 {[%emt 0:00:04]} 12. Nf3 {[%emt 0:00:07]} Nxe4 {[%emt 0:00:06]} 13. Re1 {[%emt 0:00:10]} Nf6 {[%emt 0:00:04]} 14. Bf4 {[%emt 0:00:10]} Nh5 {[%emt 0:00:06]} 15. Be3 {[%emt 0:00:05]} Bxb2 {[%emt 0:00:04]} 16. Bxh6 {[%emt 0:00:14]} Bg7 {[%emt 0:00:03]} 17. Bxg7 {[%emt 0:00:07]} Nxg7 {[%emt 0:00:03]} 18. Rb1 {[%emt 0:00:05]} Rb8 {[%emt 0:00:12]} 19. Re4 {[%emt 0:00:16]} Qa5 {[%emt 0:00:38]} 20. Ng5 {[%emt 0:00:18]} Nd4 {[%emt 0:00:25]} 21. Qg4 {[%emt 0:00:22]} f6 {[%emt 0:00:42]} 22. Nh3 {[%emt 0:00:32]} f5 {[%emt 0:00:09]} 23. Qxg6 {[%emt 0:00:04]} fxe4 {[%emt 0:00:02]} 24. Ng5 {[%emt 0:00:06]} Ne2+ {[%emt 0:00:28]} 25. Kh1 {[%emt 0:00:06]} Nxg3+ {[%emt 0:00:03]} 26. hxg3 {[%emt 0:00:06]} Rxf2 {[%emt 0:00:07]} 27. Qh7+ {[%emt 0:00:00] Kh8 Qxh8} 1-0

[Event "Djerba Festival Blitz 2025"]
[Site "Djerba"]
[Date "2025.02.21"]
[Round "4.35"]
[White "Fengal, Zineddine"]
[Black "Chargui, Saleh"]
[Result "1/2-1/2"]
[ECO "D02"]
[WhiteElo "1439"]
[BlackElo "1709"]
[PlyCount "72"]
[EventDate "2025.02.15"]
[EventType "swiss"]
[EventCountry "TUN"]
[TimeControl "180+3"]

1. d4 {[%emt 0:00:04]} d5 {[%emt 0:00:05]} 2. Nf3 {[%emt 0:00:02]} Nf6 {[%emt 0:00:02]} 3. Bf4 {[%emt 0:00:03]} Bf5 {[%emt 0:00:04]} 4. e3 {[%emt 0:00:02]} e6 {[%emt 0:00:02]} 5. Bd3 {[%emt 0:00:03]} Bxd3 {[%emt 0:00:09]} 6. Qxd3 {[%emt 0:00:02]} Nbd7 {[%emt 0:00:02]} 7. c3 {[%emt 0:00:03]} a6 {[%emt 0:00:02]} 8. Nbd2 {[%emt 0:03:08]} c5 {[%emt 0:00:03]} 9. h3 {[%emt 0:00:00]} Rc8 {[%emt 0:00:06]} 10. O-O {[%emt 0:00:00]} Be7 {[%emt 0:00:02]} 11. Rfe1 {[%emt 0:00:00]} O-O {[%emt 0:00:03]} 12. Ne5 {[%emt 0:00:00]} c4 {[%emt 0:00:17]} 13. Qc2 {[%emt 0:00:00]} Nxe5 {[%emt 0:00:04]} 14. Bxe5 {[%emt 0:00:00]} Bd6 {[%emt 0:00:03]} 15. Nf3 {[%emt 0:00:00]} b5 {[%emt 0:00:05]} 16. a3 {[%emt 0:00:00]} Ne4 {[%emt 0:00:19]} 17. Bxd6 {[%emt 0:00:00]} Qxd6 {[%emt 0:00:04]} 18. Nd2 {[%emt 0:00:00]} f5 {[%emt 0:00:08]} 19. f3 {[%emt 0:00:00]} Ng3 {[%emt 0:00:10]} 20. e4 {[%emt 0:00:00]} fxe4 {[%emt 0:00:12]} 21. fxe4 {[%emt 0:00:00]} Qf4 {[%emt 0:00:34]} 22. Nf3 {[%emt 0:00:00]} Nxe4 {[%emt 0:00:09]} 23. a4 {[%emt 0:00:00]} Qg3 {[%emt 0:00:09]} 24. axb5 {[%emt 0:00:00]} Rxf3 {[%emt 0:00:10]} 25. Re2 {[%emt 0:00:00]} axb5 {[%emt 0:00:07]} 26. Ra6 {[%emt 0:00:00]} Rcf8 {[%emt 0:00:17]} 27. Ra1 {[%emt 0:00:00]} Rf2 {[%emt 0:00:21]} 28. Rxf2 {[%emt 0:00:00]} Rxf2 {[%emt 0:00:03]} 29. Ra8+ {[%emt 0:00:00]} Kf7 {[%emt 0:00:06]} 30. Qxf2+ {[%emt 0:00:09]} Qxf2+ {[%emt 0:00:04]} 31. Kh2 {[%emt 0:00:02]} Qxb2 {[%emt 0:00:05]} 32. Ra7+ {[%emt 0:00:05]} Kg6 {[%emt 0:00:03]} 33. Re7 {[%emt 0:00:08]} Kf6 {[%emt 0:00:03]} 34. Ra7 {[%emt 0:00:04]} Qxc3 {[%emt 0:00:03]} 35. Rb7 {[%emt 0:00:04]} b4 {[%emt 0:00:03]} 36. Rb6 {[%emt 0:00:06]} b3 {[%emt 0:00:03]} 1/2-1/2

[Event "Djerba Festival Blitz 2025"]
[Site "Djerba"]
[Date "2025.02.21"]
[Round "4.38"]
[White "Farouz, Paul"]
[Black "McDonald, Margaret"]
[Result "1-0"]
[ECO "C29"]
[WhiteElo "1680"]
[BlackElo "1404"]
[PlyCount "47"]
[EventDate "2025.02.15"]
[EventType "swiss"]
[EventCountry "TUN"]
[TimeControl "180+3"]

1. e4 {[%emt 0:00:04]} e5 {[%emt 0:00:03]} 2. Nc3 {[%emt 0:00:02]} Nf6 {[%emt 0:00:05]} 3. f4 {[%emt 0:00:02]} d5 {[%emt 0:00:16]} 4. fxe5 {[%emt 0:00:03]} Nxe4 {[%emt 0:00:04]} 5. Qf3 {[%emt 0:00:02]} Nxc3 {[%emt 0:00:16]} 6. bxc3 {[%emt 0:00:05]} Nc6 {[%emt 0:00:08]} 7. Bb5 {[%emt 0:00:03]} Be7 {[%emt 0:00:16]} 8. Ne2 {[%emt 0:00:13]} O-O {[%emt 0:00:06]} 9. Bxc6 {[%emt 0:00:06]} bxc6 {[%emt 0:00:03]} 10. O-O {[%emt 0:00:04]} Be6 {[%emt 0:00:08]} 11. d3 {[%emt 0:00:12]} c5 {[%emt 0:00:06]} 12. Nf4 {[%emt 0:00:05]} Bg4 {[%emt 0:00:14]} 13. Qxg4 {[%emt 0:00:33]} c4 {[%emt 0:00:03]} 14. d4 {[%emt 0:00:05]} c5 {[%emt 0:00:04]} 15. Be3 {[%emt 0:00:05]} cxd4 {[%emt 0:00:04]} 16. cxd4 {[%emt 0:00:02]} c3 {[%emt 0:00:03]} 17. Nh5 {[%emt 0:00:16]} g6 {[%emt 0:00:08]} 18. Bh6 {[%emt 0:00:14]} f5 {[%emt 0:00:06]} 19. exf6 {[%emt 0:00:11]} Rxf6 {[%emt 0:00:12]} 20. Nxf6+ {[%emt 0:00:07]} Bxf6 {[%emt 0:00:03]} 21. Qe6+ {[%emt 0:01:32]} Kh8 {[%emt 0:00:13]} 22. Rxf6 {[%emt 0:00:00]} Qxf6 {[%emt 0:00:05]} 23. Qxf6+ {[%emt 0:00:00]} Kg8 {[%emt 0:00:04]} 24. Qf5 {[%emt 0:00:09]} 1-0

[Event "Djerba Festival Blitz 2025"]
[Site "Djerba"]
[Date "2025.02.21"]
[Round "4.40"]
[White "Mathanchandaran, Dev"]
[Black "Guinet, Andy"]
[Result "0-1"]
[ECO "B04"]
[WhiteElo "1650"]
[BlackElo "1665"]
[PlyCount "48"]
[EventDate "2025.02.15"]
[EventType "swiss"]
[EventCountry "TUN"]
[TimeControl "180+3"]

1. e4 {[%emt 0:00:04]} Nf6 {[%emt 0:00:02]} 2. e5 {[%emt 0:00:04]} Nd5 {[%emt 0:00:02]} 3. c4 {[%emt 0:00:03]} Nb6 {[%emt 0:00:01]} 4. d4 {[%emt 0:00:03]} d6 {[%emt 0:00:02]} 5. exd6 {[%emt 0:00:06]} cxd6 {[%emt 0:00:07]} 6. Nc3 {[%emt 0:00:05]} g6 {[%emt 0:00:02]} 7. Nf3 {[%emt 0:00:03]} Bg7 {[%emt 0:00:02]} 8. Be3 {[%emt 0:00:03]} O-O {[%emt 0:00:03]} 9. Be2 {[%emt 0:00:14]} Bf5 {[%emt 0:00:03]} 10. h4 {[%emt 0:00:03]} Nc6 {[%emt 0:00:12]} 11. h5 {[%emt 0:00:03]} e5 {[%emt 0:00:06]} 12. hxg6 {[%emt 0:00:11]} fxg6 {[%emt 0:00:01]} 13. dxe5 {[%emt 0:00:11]} dxe5 {[%emt 0:00:04]} 14. Qb3 {[%emt 0:00:05]} Kh8 {[%emt 0:00:02]} 15. Ng5 {[%emt 0:00:06]} h5 {[%emt 0:00:10]} 16. Bxh5 {[%emt 0:00:11]} Bh6 {[%emt 0:00:13]} 17. Be2 {[%emt 0:00:09]} Kg7 {[%emt 0:00:02]} 18. Ne6+ {[%emt 0:00:08]} Bxe6 {[%emt 0:00:02]} 19. Bxh6+ {[%emt 0:00:02]} Kf7 {[%emt 0:00:08]} 20. Bxf8 {[%emt 0:00:09]} Qxf8 {[%emt 0:00:02]} 21. Ne4 {[%emt 0:00:18]} Nd4 {[%emt 0:00:02]} 22. Qc3 {[%emt 0:00:13]} Nxe2 {[%emt 0:00:03]} 23. Kxe2 {[%emt 0:00:03]} Bxc4+ {[%emt 0:00:03]} 24. Ke3 {[%emt 0:00:11]} Nd5+ {[%emt 0:00:08]} 0-1

[Event "Djerba Festival Blitz 2025"]
[Site "Djerba"]
[Date "2025.02.21"]
[Round "4.41"]
[White "Khider, Amilia"]
[Black "Guinet, Stephane"]
[Result "1-0"]
[ECO "B01"]
[WhiteElo "1524"]
[BlackElo "1617"]
[PlyCount "21"]
[EventDate "2025.02.15"]
[EventType "swiss"]
[EventCountry "TUN"]
[TimeControl "180+3"]

1. e4 {[%emt 0:00:03]} Nf6 {[%emt 0:00:03]} 2. Nc3 {[%emt 0:00:06]} d5 {[%emt 0:00:02]} 3. exd5 {[%emt 0:00:07]} Nxd5 {[%emt 0:00:02]} 4. Nxd5 {[%emt 0:00:03]} Qxd5 {[%emt 0:00:02]} 5. d4 {[%emt 0:00:03]} Nc6 {[%emt 0:00:02]} 6. Nf3 {[%emt 0:00:05]} g6 {[%emt 0:00:02]} 7. Be2 {[%emt 0:00:18]} Bg7 {[%emt 0:00:02]} 8. c3 {[%emt 0:02:42]} O-O {[%emt 0:00:03]} 9. O-O {[%emt 0:00:00]} e5 {[%emt 0:00:03]} 10. dxe5 {[%emt 0:00:00]} Nxe5 {[%emt 0:00:04]} 11. Qxd5 {[%emt 0:00:00]} 1-0

[Event "Djerba Festival Blitz 2025"]
[Site "Djerba"]
[Date "2025.02.21"]
[Round "4.44"]
[White "Benzarti, Thabet"]
[Black "Doucet, Paul-Loup"]
[Result "1-0"]
[ECO "D37"]
[WhiteElo "1664"]
[BlackElo "1503"]
[PlyCount "38"]
[EventDate "2025.02.15"]
[EventType "swiss"]
[EventCountry "TUN"]
[TimeControl "180+3"]

1. d4 {[%emt 0:00:03]} d5 {[%emt 0:00:03]} 2. c4 {[%emt 0:00:01]} e6 {[%emt 0:00:02]} 3. Nc3 {[%emt 0:00:02]} Nf6 {[%emt 0:00:02]} 4. Nf3 {[%emt 0:00:02]} Nbd7 {[%emt 0:00:02]} 5. e3 {[%emt 0:00:04]} Be7 {[%emt 0:00:02]} 6. Qc2 {[%emt 0:00:02]} O-O {[%emt 0:00:06]} 7. Bd3 {[%emt 0:00:02]} dxc4 {[%emt 0:00:01]} 8. Bxc4 {[%emt 0:00:02]} Nb6 {[%emt 0:00:02]} 9. Bd3 {[%emt 0:00:03]} c5 {[%emt 0:00:13]} 10. dxc5 {[%emt 0:00:18]} Bxc5 {[%emt 0:00:02]} 11. Ne4 {[%emt 0:00:02]} Nxe4 {[%emt 0:00:38]} 12. Bxe4 {[%emt 0:00:03]} Bb4+ {[%emt 0:00:02]} 13. Bd2 {[%emt 0:00:03]} Bxd2+ {[%emt 0:00:07]} 14. Nxd2 {[%emt 0:00:02]} h6 {[%emt 0:00:14]} 15. O-O {[%emt 0:00:04]} Bd7 {[%emt 0:00:04]} 16. Bxb7 {[%emt 0:00:03]} Rb8 {[%emt 0:00:01]} 17. Bf3 {[%emt 0:00:03]} Rc8 {[%emt 0:00:03]} 18. Qd3 {[%emt 0:00:10]} Bc6 {[%emt 0:00:18]} 19. Qe2 {[%emt 0:00:14]} Bxf3 {[%emt 0:00:07]} 1-0